bitfinex-derivatives/quotes_ETHF0:USTF0_20260120
["timestamp","ask_amount","ask_price","bid_price","bid_amount"]
[1768880883237,0.83787062,3191.3,3189.7,0.78490282]
[1768880883238,0.1568,3190.8,3189.7,0.78490282]
[1768880884121,0.1568,3190.8,3189.6,2.02]
[1768880884327,0.1568,3190.7,3189.6,2.02]
[1768880884626,0.1568,3190.7,3189.6,2.80490282]
[1768880889029,0.83787062,3191.3,3189.4,2.25148269]
[1768880889030,0.15681,3190.6,3189.4,2.25148269]
[1768880889229,0.15681,3190.6,3189.1,4.00238823]
[1768880889230,0.15681,3190.6,3189.5,2.02]
[1768880893830,0.15681,3190.6,3189.5,2.80490282]
[1768880895331,0.15681,3190.6,3189.6,0.78490282]
[1768880896834,0.15681,3190.6,3189.5,2.02]
[1768880898243,0.15682,3190.4,3189.4,2.25148269]
[1768880898430,0.15682,3190.4,3189.3,2.25148269]
[1768880898733,0.15682,3190.4,3189.3,4.27148269]
[1768880902632,0.15682,3190.4,3189.4,2.25148269]
[1768880907339,0.15682,3190.4,3189.5,2.25148269]
[1768880910139,0.15682,3190.4,3189.6,0.88530732]
[1768880910332,1.12653069,3191.4,3189.9,0.88530732]
[1768880910534,0.15679,3191.0,3189.9,0.88530732]
[1768880910735,0.15679,3191.0,3190.1,0.88530732]
[1768880913048,0.15679,3191.0,3190.0,2.022]
[1768880913744,0.15679,3191.0,3190.3,1.17991488]
[1768880913940,0.15679,3191.0,3190.1,0.88530732]
[1768880916641,0.15679,3191.0,3190.0,3.20191488]
[1768880919244,0.15679,3190.9,3190.0,2.022]
[1768880919945,0.15679,3190.9,3190.1,1.17991488]
[1768880921742,0.15679,3190.9,3189.8,2.25148269]
[1768880921936,0.15679,3190.9,3190.0,1.17991488]
[1768880923546,0.15679,3190.9,3190.0,2.07421928]
[1768880923847,0.15679,3190.9,3190.3,1.17991488]
[1768880925943,0.00248067,3191.4,3190.3,1.17991488]
[1768880926151,0.8001801,3191.3,3190.3,1.17991488]
[1768880926351,0.00248067,3191.4,3190.3,1.17991488]
[1768880926549,0.80016468,3191.3,3190.3,1.17991488]
[1768880926752,0.00248067,3191.4,3190.3,1.17991488]
[1768880926937,0.00248067,3191.4,3190.0,0.8943044]
[1768880926938,0.15679,3190.9,3190.6,1.17991488]
[1768880927143,0.00248067,3191.4,3190.6,1.18226549]
[1768880927340,0.15679,3190.9,3190.6,1.18226549]
[1768880927540,0.00248067,3191.4,3190.6,1.18226549]
[1768880928145,0.15679,3190.9,3190.6,1.18226549]
[1768880928342,0.00248067,3191.4,3190.6,1.18226549]
[1768880930445,0.15676,3191.6,3190.6,1.18226549]
[1768880930446,0.15676,3191.6,3190.9,1.17991488]
[1768880931044,0.81799612,3192.2,3191.2,1.17991488]
[1768880931242,0.15673,3192.2,3191.5,1.17991488]
[1768880931443,0.15938165,3192.2,3191.5,1.17991488]
[1768880934850,0.9116288,3193.0,3191.8,1.17991488]
[1768880935049,0.79919839,3192.9,3191.8,1.17991488]
[1768880935246,0.15671,3192.7,3191.5,1.17991488]
[1768880935452,0.9116288,3192.5,3190.9,2.25148269]
[1768880935748,0.9116288,3192.5,3191.0,1.17991488]
[1768880935950,0.9144752,3192.5,3191.0,1.17991488]
[1768880936652,0.15672,3192.4,3191.0,1.17991488]
[1768880938843,0.9144752,3192.5,3191.0,1.17991488]
[1768880939046,0.15674,3192.0,3191.0,1.17991488]
[1768880939248,0.15674,3192.0,3190.9,1.17991488]
[1768880940147,0.9116288,3192.2,3190.8,2.8594859]
[1768880940361,0.9116288,3192.2,3190.6,1.18226549]
[1768880940362,0.15675,3191.9,3190.6,1.18226549]
[1768880940656,0.15675,3191.7,3190.6,1.18226549]
[1768880941462,0.15675,3191.7,3190.6,0.00235061]
[1768880941463,0.15676,3191.5,3190.6,0.00235061]
[1768880941651,0.15677,3191.4,3190.6,0.00235061]
[1768880945458,0.15677,3191.4,3190.7,1.17991488]
[1768880947754,0.15677,3191.4,3190.6,0.00235061]
[1768880951669,0.15677,3191.4,3190.8,1.17991488]
[1768880952462,0.9144752,3192.5,3191.1,1.17991488]
[1768880952670,2.89066113,3192.4,3191.1,1.17991488]
[1768880952868,2.09154368,3192.4,3191.1,1.17991488]
[1768880953574,0.9116288,3192.3,3190.8,1.17991488]
[1768880953869,2.09154368,3192.2,3190.8,1.17991488]
[1768880954476,0.9116288,3192.2,3190.8,1.17991488]
[1768880954781,0.15674,3191.9,3190.8,1.17991488]
[1768880956279,0.15674,3191.9,3190.8,2.02140078]
[1768880958669,0.15674,3191.9,3190.6,2.2538333]
[1768880958874,0.15675,3191.8,3190.6,3.43374818]
[1768880959981,0.15675,3191.8,3190.9,1.17991488]
[1768880960977,0.15675,3191.8,3190.6,3.0953192]
[1768880961276,0.15675,3191.8,3190.9,1.17991488]
[1768880962081,0.15675,3191.8,3190.7,2.25148269]
[1768880962381,0.15675,3191.8,3190.9,1.17991488]
[1768880962881,0.15675,3191.8,3190.9,2.02140078]
[1768880966080,0.15675,3191.8,3190.9,1.17991488]
[1768880966783,0.15675,3191.8,3190.7,2.25148269]
[1768880966982,0.15675,3191.8,3190.8,1.17991488]
[1768880967280,0.15676,3191.6,3190.7,2.25148269]
[1768880968678,0.15676,3191.6,3190.7,3.43139757]
[1768880970887,0.15676,3191.6,3190.6,0.00235061]
[1768880972880,0.15676,3191.5,3190.6,0.00235061]
[1768880976786,0.15678,3191.2,3190.6,0.00235061]
[1768880981504,1.12405002,3192.2,3190.6,0.89371733]
[1768880981792,2.0333435,3192.2,3190.6,0.89371733]
[1768880981992,0.15675,3191.8,3190.6,0.89371733]
[1768880985496,0.15675,3191.8,3190.7,0.90062625]
[1768880985892,0.15675,3191.8,3190.9,0.9042501]
[1768880988487,0.15675,3191.8,3190.8,4.26948269]
[1768880989094,0.15675,3191.8,3190.8,2.018]
[1768880989297,0.15675,3191.8,3190.8,4.26948269]
[1768880990095,0.15675,3191.8,3190.8,2.018]
[1768880992403,0.15675,3191.7,3190.7,2.25148269]
[1768880996807,0.15676,3191.6,3190.7,2.25148269]
[1768880997707,0.15676,3191.5,3190.7,2.25148269]
[1768880997899,0.89434059,3192.0,3190.6,0.00235061]
[1768880998103,0.9939566,3191.8,3190.6,0.00235061]
[1768880998405,0.9939566,3191.6,3190.6,0.00235061]
[1768880999005,0.15678,3191.1,3190.6,0.00235061]
[1768880999191,0.15679,3191.0,3190.1,4.27048269]
[1768881000103,0.15679,3191.0,3190.1,4.27349284]
[1768881002312,1.68035098,3192.1,3190.1,0.00301015]
[1768881002313,0.1568,3190.8,3190.1,0.00301015]
[1768881002500,2.17355859,3191.2,3190.1,0.00301015]
[1768881002700,1.79248142,3191.1,3190.1,0.00301015]
[1768881002901,1.79248142,3191.0,3190.1,0.00301015]
[1768881003204,0.9939566,3191.0,3190.1,0.00301015]
[1768881003407,0.9939566,3191.0,3189.5,2.02]
[1768881003602,0.9939566,3191.0,3189.4,2.25148269]
[1768881003907,0.96180936,3191.1,3189.2,0.93761532]
[1768881003908,0.9939566,3190.8,3189.3,4.27148269]
[1768881004301,0.15682,3190.3,3189.3,4.2737319]
[1768881005411,0.15682,3190.3,3189.3,2.02224921]
[1768881012118,0.15682,3190.3,3189.4,0.93761532]
[1768881012314,0.15679,3191.0,3189.4,0.93761532]
[1768881014120,0.15679,3190.9,3189.4,0.93761532]
[1768881014925,0.1568,3190.8,3189.4,0.93761532]
[1768881017813,0.1568,3190.8,3189.5,2.95861532]
[1768881018121,0.1568,3190.8,3189.6,0.93761532]
[1768881019822,0.1568,3190.7,3189.6,0.93761532]
[1768881025114,0.15681,3190.6,3189.6,0.93761532]
[1768881025521,0.15681,3190.6,3189.5,2.02]
[1768881026013,0.15681,3190.6,3189.5,2.98256444]
[1768881026525,0.15681,3190.6,3189.6,0.96256444]
[1768881032329,0.15681,3190.6,3189.7,0.96256444]
[1768881037134,0.15681,3190.6,3189.7,1.92420814]
[1768881037828,0.15681,3190.6,3189.7,0.9616437]
[1768881038036,0.15681,3190.6,3189.6,2.25148269]
[1768881041237,0.15681,3190.6,3189.7,0.9616437]
[1768881046134,0.15681,3190.6,3189.6,3.21404713]
[1768881046334,0.15681,3190.6,3189.6,4.17569083]
[1768881050340,0.15681,3190.6,3189.7,1.00407946]
[1768881052250,0.15681,3190.6,3189.9,0.9616437]
[1768881052443,0.15681,3190.6,3189.9,1.96572316]
[1768881056750,0.15678,3191.2,3190.0,0.96502571]
[1768881057049,0.80572821,3191.1,3190.3,0.96502571]
[1768881057251,0.15678,3191.2,3190.3,0.96502571]
[1768881059455,0.15678,3191.2,3190.5,1.92666941]
[1768881061651,0.15678,3191.2,3190.1,2.25148269]
[1768881061855,0.15678,3191.2,3190.1,4.27748269]
[1768881062056,0.15678,3191.2,3190.1,2.99102571]
[1768881062252,0.15678,3191.2,3190.2,0.96502571]
[1768881065664,0.15678,3191.2,3190.2,0.9616437]
[1768881065857,0.15678,3191.2,3190.3,0.96502571]
[1768881066255,0.15678,3191.2,3190.3,1.92666941]
[1768881075664,0.15678,3191.2,3190.4,0.96502571]
[1768881092986,0.15678,3191.2,3190.6,0.9616437]
[1768881093789,0.15675,3191.8,3190.6,2.0216695]
[1768881093986,0.96335564,3191.7,3190.6,2.0216695]
[1768881094190,0.80660564,3191.6,3190.6,2.0216695]
[1768881094394,0.15675,3191.7,3190.9,0.9616437]
[1768881094593,0.80642129,3191.6,3190.9,0.9616437]
[1768881094793,0.15675,3191.7,3190.9,0.9616437]
[1768881096495,0.15675,3191.7,3190.9,2.0216695]
[1768881096897,0.15675,3191.7,3190.9,1.0600258]
[1768881097500,1.12405002,3192.3,3190.9,1.0600258]
[1768881097696,1.9298975,3192.3,3190.9,1.0600258]
[1768881098197,2.96703445,3192.3,3190.9,3.0860258]
[1768881098493,0.80584748,3192.2,3190.9,3.0860258]
[1768881098693,0.15675,3191.7,3190.9,3.0860258]
[1768881105098,0.15675,3191.7,3190.9,2.026]
[1768881106097,0.15675,3191.7,3190.7,2.025]
[1768881107203,0.15675,3191.7,3190.7,3.03660742]
[1768881107595,0.15677,3191.5,3190.5,2.25148269]
[1768881107904,0.15677,3191.5,3190.4,2.25148269]
[1768881117008,0.15677,3191.5,3190.4,3.3158503]
[1768881118407,0.15677,3191.5,3190.5,2.25148269]
[1768881122505,0.15677,3191.4,3190.5,2.25148269]
[1768881122813,0.15677,3191.3,3190.4,3.3158503]
[1768881123012,1.00918266,3191.8,3190.4,2.25148269]
[1768881123310,0.15678,3191.2,3190.2,2.25148269]
[1768881124309,0.15678,3191.2,3190.1,4.27848269]
[1768881126213,0.15678,3191.2,3190.1,5.3428503]
[1768881126412,0.15678,3191.2,3190.2,1.06436761]
[1768881127704,0.15678,3191.2,3189.9,2.25148269]
[1768881127705,0.1568,3190.9,3189.9,2.25148269]
[1768881127900,0.1568,3190.9,3189.6,4.27948269]
[1768881128103,0.1568,3190.8,3189.6,4.27948269]
[1768881128308,0.1568,3190.8,3189.6,5.3438503]
[1768881128711,0.1568,3190.8,3189.7,1.06436761]
[1768881130713,1.00918266,3191.2,3189.5,2.028]
[1768881130913,1.00918266,3191.0,3189.5,2.028]
[1768881131716,0.15681,3190.6,3189.5,2.028]
[1768881136920,0.15682,3190.4,3189.3,1.06661682]
[1768881137122,0.15682,3190.4,3189.4,2.028]
[1768881137516,0.15682,3190.4,3189.4,3.09236761]
[1768881140524,0.15682,3190.4,3189.4,1.06436761]
[1768881175349,1.12405002,3190.9,3189.7,0.9628545]
[1768881175544,0.15682,3190.4,3189.7,0.9628545]
[1768881175746,1.12405002,3191.0,3189.7,0.9628545]
[1768881175940,0.15682,3190.4,3189.7,0.9628545]
[1768881176734,0.15679,3191.0,3190.2,0.96187223]
[1768881181450,0.15679,3191.0,3190.1,2.029]
[1768881182044,0.15679,3191.0,3190.2,0.81347031]
[1768881182241,1.12405002,3191.5,3190.3,1.61855254]
[1768881182442,0.8084326,3191.4,3190.4,0.65668031]
[1768881182641,0.15679,3191.0,3190.4,0.65668031]
[1768881183044,0.15679,3191.0,3190.1,2.029]
[1768881189155,0.15679,3190.9,3190.0,1.62168159]
[1768881189362,0.1568,3190.8,3189.7,2.027]
[1768881192660,0.1568,3190.7,3189.7,2.027]
[1768881192962,0.15681,3190.5,3189.5,2.25689601]
[1768881193165,0.15681,3190.5,3189.4,4.28589601]
[1768881193366,0.15681,3190.5,3189.4,2.029]
[1768881198665,0.96187223,3190.6,3189.3,0.00224921]
[1768881198872,0.15683,3190.1,3189.3,0.00224921]
[1768881199060,0.15948015,3190.1,3189.3,0.00224921]
[1768881199462,0.15684,3190.0,3189.3,0.00224921]
[1768881200568,0.15685,3189.9,3189.3,0.00224921]
[1768881200768,0.15685,3189.8,3188.4,4.47773617]
[1768881200968,0.15685,3189.8,3188.6,2.029]
[1768881201669,0.15685,3189.8,3188.6,2.03123351]
[1768881206474,0.15685,3189.8,3188.6,0.96410574]
[1768881209776,0.15685,3189.8,3188.6,1.68794306]
[1768881209971,0.15685,3189.8,3188.9,0.96187223]
[1768881210165,0.00265015,3190.1,3189.2,1.52885955]
[1768881210975,0.00265015,3190.1,3188.9,0.96187223]
[1768881211470,0.00265015,3190.1,3188.9,2.03]
[1768881211671,0.15685,3189.8,3188.9,2.03]
[1768881218279,0.15686,3189.5,3188.6,0.00223351]
[1768881221585,1.03319301,3190.0,3188.6,0.00223351]
[1768881221781,0.15689,3189.0,3187.9,0.61063646]
[1768881221979,0.15689,3189.0,3187.9,2.63963646]
[1768881222779,0.15689,3189.0,3187.9,2.64370438]
[1768881229590,0.15689,3189.0,3188.0,0.6290055]
[1768881229781,0.15687,3189.5,3188.0,0.6290055]
[1768881230182,0.15687,3189.4,3188.0,0.6290055]
[1768881230692,0.15687,3189.3,3188.0,0.6290055]
[1768881237491,0.15688,3189.2,3188.0,0.6290055]
[1768881240495,1.06976944,3189.7,3188.0,0.6290055]
[1768881240684,1.06976944,3189.5,3188.0,0.6290055]
[1768881241188,0.80873983,3189.4,3188.0,0.6290055]
[1768881241388,1.06976944,3189.5,3188.0,0.6290055]
[1768881241581,0.15689,3189.0,3188.0,0.6290055]
[1768881255809,0.15689,3189.0,3187.9,0.00406792]
[1768881256703,0.15689,3189.0,3187.9,2.02806792]
[1768881264508,0.15689,3189.0,3187.9,0.00406792]
[1768881265910,0.15689,3189.0,3187.9,0.59518123]
[1768881268609,0.15689,3189.0,3187.9,0.00406792]
[1768881278919,0.15689,3189.0,3187.9,0.9668165]
[1768881280623,0.15689,3189.0,3187.9,0.00406792]
[1768881280817,0.15689,3189.0,3187.9,0.9668165]
[1768881285330,0.15689,3189.0,3187.9,0.00406792]
[1768881285527,0.15689,3189.0,3187.9,0.9668165]
[1768881290727,0.15689,3189.0,3187.9,0.00406792]
[1768881290924,0.15689,3189.0,3187.9,0.9668165]
[1768881294642,0.15689,3189.0,3187.9,0.00406792]
[1768881294838,1.39859504,3189.0,3187.9,0.9668165]
[1768881297833,1.24170504,3189.0,3187.9,0.9668165]
[1768881298441,1.24170504,3189.0,3187.9,0.00406792]
[1768881298639,0.1569,3188.8,3187.9,0.00406792]
[1768881301334,0.1569,3188.7,3187.9,0.00406792]
[1768881301532,0.15691,3188.6,3187.9,0.00406792]
[1768881301729,1.24170504,3188.7,3187.3,2.82175386]
[1768881302038,1.39863504,3188.1,3186.9,2.018]
[1768881302743,0.15693,3188.1,3187.2,0.96274858]
[1768881310445,0.15693,3188.1,3186.9,2.65497805]
[1768881310641,0.15693,3188.1,3187.1,0.96274858]
[1768881316046,0.15694,3187.9,3186.9,0.00279276]
[1768881318948,2.36139362,3187.9,3186.9,0.00279276]
[1768881319342,1.39864504,3187.9,3186.9,0.00279276]
[1768881328564,0.15695,3187.8,3186.9,0.00279276]
[1768881328764,1.41339627,3187.8,3186.9,0.00279276]
[1768881336066,0.15695,3187.7,3186.9,0.00279276]
[1768881336265,1.41015055,3187.7,3186.9,0.00279276]
[1768881340766,0.15695,3187.7,3187.1,0.96274858]
[1768881341071,0.00324572,3187.8,3186.9,0.00279276]
[1768881341366,0.15695,3187.7,3186.9,0.00279276]
[1768881341872,1.25320055,3188.1,3186.9,0.00279276]
[1768881342865,1.25587925,3188.1,3186.9,0.00279276]
[1768881343870,0.0026787,3188.1,3186.9,0.00279276]
[1768881344070,0.0026787,3188.1,3187.1,0.96313655]
[1768881344267,0.0026787,3188.1,3187.1,1.64224465]
[1768881345667,2.40217747,3188.8,3187.2,0.69646175]
[1768881345867,0.15692,3188.3,3187.2,0.69646175]
[1768881346071,0.15692,3188.3,3187.3,2.012]
[1768881346778,0.1599397,3188.3,3187.3,2.012]
[1768881350171,1.27812745,3188.8,3187.3,2.012]
[1768881350366,0.81307616,3188.7,3187.3,2.012]
[1768881350570,1.27812745,3188.8,3187.3,2.012]
[1768881350778,0.81307159,3188.7,3187.3,2.012]
[1768881351079,1.27812745,3188.8,3187.3,2.012]
[1768881351280,0.81307159,3188.7,3187.3,2.012]
[1768881351473,1.28153087,3188.8,3187.3,2.012]
[1768881353878,1.28153087,3188.8,3187.5,0.96313655]
[1768881354481,0.15689,3189.0,3187.3,2.012]
[1768881354482,0.15689,3189.0,3187.9,0.96313655]
[1768881354877,0.15686,3189.6,3187.9,0.96313655]
[1768881355082,0.96921548,3189.5,3187.9,0.96313655]
[1768881355282,0.81235548,3189.4,3187.9,2.15361967]
[1768881355478,0.15986721,3189.5,3188.3,0.96313655]
[1768881355684,0.15986721,3189.5,3188.3,2.97313655]
[1768881359185,0.15986721,3189.5,3188.3,4.16361967]
[1768881373290,0.15986721,3189.5,3188.4,1.19048312]
[1768881378904,1.38171683,3189.5,3188.5,2.007]
[1768881380904,0.15986721,3189.5,3188.5,2.007]
[1768881402522,0.15986721,3189.5,3188.5,3.43555473]
[1768881402920,0.15986721,3189.5,3188.6,0.9622888]
[1768881420741,0.15986721,3189.5,3188.5,3.43555473]
[1768881428155,0.15986721,3189.5,3188.5,1.42855473]
[1768881428360,0.15986721,3189.5,3188.6,2.009]
[1768881435565,0.15986721,3189.5,3188.5,1.42855473]
[1768881435767,0.9622888,3189.2,3188.0,3.94854567]
[1768881436064,2.18884889,3189.4,3188.0,0.9622888]
[1768881436065,1.37152644,3189.4,3188.0,0.9622888]
[1768881436269,0.81736783,3189.3,3188.0,0.9622888]
[1768881436460,1.37152644,3189.4,3188.0,0.9622888]
[1768881436658,0.81685597,3189.3,3188.3,2.33088869]
[1768881436860,0.15986721,3189.5,3188.4,1.36859989]
[1768881437055,0.81682288,3189.4,3188.4,1.36859989]
[1768881437257,0.15986721,3189.5,3188.4,1.36859989]
[1768881437457,0.81668332,3189.4,3188.4,1.36859989]
[1768881437667,0.15986721,3189.5,3188.4,1.36859989]
[1768881437867,0.8166833,3189.4,3188.4,1.36859989]
[1768881438070,0.15986721,3189.5,3188.4,1.36859989]
[1768881438265,0.81667191,3189.4,3188.4,1.36859989]
[1768881438465,0.15986721,3189.5,3188.4,1.36859989]
[1768881438668,0.81657682,3189.4,3188.4,1.36859989]
[1768881438965,0.15986721,3189.5,3188.4,1.36859989]
[1768881439171,0.81654805,3189.4,3188.4,1.36859989]
[1768881439469,0.15986721,3189.5,3188.4,1.36859989]
[1768881439766,0.81648278,3189.4,3188.4,1.36859989]
[1768881439966,0.15986721,3189.5,3188.4,1.36859989]
[1768881460382,0.81665406,3189.4,3188.4,1.36859989]
[1768881460584,0.15986721,3189.5,3188.4,1.36859989]
[1768881460786,0.81665406,3189.4,3188.4,1.36859989]
[1768881460987,0.15986721,3189.5,3188.4,1.36859989]
[1768881461284,0.81665406,3189.4,3188.4,1.36859989]
[1768881461479,0.15986721,3189.5,3188.4,1.36859989]
[1768881461691,0.81671077,3189.4,3188.4,1.36859989]
[1768881461991,0.15687,3189.3,3188.4,1.36859989]
[1768881462177,0.15687,3189.3,3188.4,3.37359989]
[1768881468288,0.97782528,3189.2,3188.0,1.39613905]
[1768881468494,0.15688,3189.2,3188.4,2.005]
[1768881483905,0.15688,3189.2,3188.0,1.39613905]
[1768881484107,0.8202652,3189.1,3188.2,2.003]
[1768881484406,0.15688,3189.2,3188.2,2.003]
[1768881484608,0.82025411,3189.1,3188.2,2.003]
[1768881484902,0.15688,3189.2,3188.2,2.003]
[1768881485103,0.82025411,3189.1,3188.2,2.003]
[1768881485305,0.15688,3189.2,3188.2,2.003]
[1768881485490,0.82024897,3189.1,3188.2,2.003]
[1768881485693,0.15688,3189.2,3188.2,2.003]
[1768881485909,0.82024879,3189.1,3188.2,3.41874148]
[1768881486097,0.15688,3189.2,3188.2,3.41874148]
[1768881486295,0.82023981,3189.1,3188.2,3.41874148]
[1768881486503,0.15688,3189.2,3188.2,3.41874148]
[1768881486702,0.82025195,3189.1,3188.2,3.41874148]
[1768881486994,0.15688,3189.2,3188.2,3.41874148]
[1768881487190,0.82025195,3189.1,3188.2,3.41874148]
[1768881487402,0.15688,3189.2,3188.2,3.41874148]
[1768881487603,0.82026267,3189.1,3188.2,3.41874148]
[1768881487802,0.15688,3189.2,3188.2,3.41874148]
[1768881488002,0.82026267,3189.1,3188.2,3.41874148]
[1768881488204,0.15688,3189.2,3188.2,3.41874148]
[1768881488405,0.82028109,3189.1,3188.2,3.41874148]
[1768881488607,0.15688,3189.2,3188.2,3.41874148]
[1768881488807,0.82028109,3189.1,3188.2,3.41874148]
[1768881489107,0.15688,3189.2,3188.2,3.41874148]
[1768881489307,0.8202805,3189.1,3188.2,3.41874148]
[1768881489605,0.15688,3189.2,3188.2,3.41874148]
[1768881489903,0.82030939,3189.1,3188.2,3.41874148]
[1768881490106,0.15688,3189.2,3188.2,3.41874148]
[1768881490294,0.82030973,3189.1,3188.2,3.41874148]
[1768881490489,0.15688,3189.2,3188.2,3.41874148]
[1768881490695,0.82034226,3189.1,3188.2,3.41874148]
[1768881490994,0.15688,3189.2,3188.2,3.41874148]
[1768881491198,0.82034208,3189.1,3188.2,3.41874148]
[1768881491390,0.15688,3189.2,3188.2,3.41874148]
[1768881491603,0.82038338,3189.1,3188.2,3.41874148]
[1768881491806,0.15688,3189.2,3188.2,3.41874148]
[1768881492004,0.8203832,3189.1,3188.2,3.41874148]
[1768881492206,0.15688,3189.2,3188.2,3.41874148]
[1768881492506,0.82043355,3189.1,3188.2,3.41874148]
[1768881492805,0.15688,3189.2,3188.2,3.41874148]
[1768881493006,0.82043355,3189.1,3188.2,3.41874148]
[1768881493207,0.15688,3189.2,3188.2,3.41874148]
[1768881493397,0.82047961,3189.1,3188.2,3.41874148]
[1768881493599,0.15688,3189.2,3188.2,3.41874148]
[1768881493902,0.82052984,3189.1,3188.2,3.41874148]
[1768881494198,0.15688,3189.2,3188.2,3.41874148]
[1768881494398,0.82058138,3189.1,3188.2,3.41874148]
[1768881494597,0.15688,3189.2,3188.2,3.41874148]
[1768881494908,0.82058138,3189.1,3188.2,3.41874148]
[1768881495210,0.15688,3189.2,3188.2,3.41874148]
[1768881495506,0.82066004,3189.1,3188.2,3.41874148]
[1768881495707,0.15688,3189.2,3188.2,3.41874148]
[1768881495900,0.82066004,3189.1,3188.2,3.41874148]
[1768881496099,0.15688,3189.2,3188.2,3.41874148]
[1768881496309,0.82066353,3189.1,3188.2,3.41874148]
[1768881496610,0.15688,3189.2,3188.2,3.41874148]
[1768881496803,0.82076497,3189.1,3188.2,3.41674148]
[1768881497006,0.15688,3189.2,3188.2,3.41674148]
[1768881497203,0.82076533,3189.1,3188.2,3.41674148]
[1768881497504,0.15688,3189.2,3188.2,3.41674148]
[1768881497704,0.82091603,3189.1,3188.2,3.41674148]
[1768881497903,0.15688,3189.2,3188.2,3.41674148]
[1768881498104,0.82091584,3189.1,3188.2,3.41674148]
[1768881498305,0.82101642,3189.0,3188.2,3.41674148]
[1768881498506,0.15688,3189.2,3188.2,3.41674148]
[1768881498707,0.82101642,3189.1,3188.2,3.41674148]
[1768881498908,0.82101642,3189.0,3188.2,3.41674148]
[1768881499111,0.15688,3189.2,3188.2,3.41674148]
[1768881499307,0.82101387,3189.1,3188.2,3.41674148]
[1768881499608,0.82101387,3189.0,3188.2,3.41674148]
[1768881499809,0.15688,3189.2,3188.2,3.41674148]
[1768881500011,0.82101258,3189.1,3188.2,3.41674148]
[1768881500315,0.82101258,3189.0,3188.2,3.41674148]
[1768881500614,0.15688,3189.2,3188.2,3.41674148]
[1768881500813,0.82101295,3189.1,3188.2,3.41674148]
[1768881501014,0.82101295,3189.0,3188.2,3.41674148]
[1768881501315,0.15688,3189.2,3188.2,3.41674148]
[1768881501514,0.82101557,3189.1,3188.2,3.41674148]
[1768881501712,0.82101557,3189.0,3188.2,3.41674148]
[1768881501914,0.15688,3189.2,3188.2,3.41674148]
[1768881502114,0.82101557,3189.1,3188.2,3.41674148]
[1768881502414,0.82101557,3189.0,3188.2,3.41674148]
[1768881502615,0.15688,3189.2,3188.2,3.41674148]
[1768881502915,0.8210194,3189.1,3188.2,3.41674148]
[1768881503115,0.8210194,3189.0,3188.2,3.41574148]
[1768881503316,0.15688,3189.2,3187.7,4.70926583]
[1768881503617,0.82102412,3189.1,3188.2,2.0]
[1768881503806,0.82102412,3189.0,3188.2,2.0]
[1768881504009,0.15688,3189.2,3188.2,2.0]
[1768881504207,0.82102393,3189.1,3188.2,2.0]
[1768881504409,0.82102393,3189.0,3188.2,2.0]
[1768881504622,0.15688,3189.2,3188.2,2.0]
[1768881504826,0.82103285,3189.1,3188.2,2.0]
[1768881505116,0.82103285,3189.0,3188.2,2.0]
[1768881505321,0.15688,3189.2,3188.2,2.0]
[1768881505516,0.8210385,3189.1,3188.2,2.0]
[1768881505813,0.8210385,3189.0,3188.2,2.0]
[1768881506015,0.15688,3189.2,3188.2,2.0]
[1768881506313,0.8210385,3189.1,3188.2,2.0]
[1768881506511,0.8210385,3189.0,3188.2,2.0]
[1768881506711,0.15688,3189.2,3188.2,2.0]
[1768881506913,0.82104669,3189.1,3188.2,2.0]
[1768881507119,0.82104669,3189.0,3188.2,2.0]
[1768881507320,0.15688,3189.2,3188.2,2.0]
[1768881507521,0.82105706,3189.1,3188.2,2.0]
[1768881507719,0.82105706,3189.0,3188.2,2.0]
[1768881507920,0.15688,3189.2,3188.2,2.0]
[1768881508122,0.82105706,3189.1,3188.2,2.0]
[1768881508421,0.82105706,3189.0,3188.2,2.0]
[1768881508614,0.15688,3189.2,3188.2,2.0]
[1768881508815,0.82107174,3189.1,3188.2,2.0]
[1768881509017,0.82107174,3189.0,3188.2,2.0]
[1768881509219,0.00300721,3189.5,3188.3,1.57126583]
[1768881510119,0.00300721,3189.5,3188.4,3.57126583]
[1768881510924,0.00300721,3189.5,3187.9,1.57126583]
[1768881511111,0.00300721,3189.5,3188.1,1.57126583]
[1768881514026,0.00300721,3189.5,3188.2,3.57026583]
[1768881514418,0.00300721,3189.5,3188.3,1.57126583]
[1768881526935,0.00300721,3189.5,3188.4,2.43664786]
[1768881529038,0.00300721,3189.5,3188.7,0.96238518]
[1768881531140,0.00300721,3189.5,3188.7,2.43664786]
[1768881531341,0.15686,3189.6,3188.8,1.47426268]
[1768881532540,0.16034647,3189.6,3188.8,1.47426268]
[1768881534939,1.12405002,3190.2,3188.8,1.47426268]
[1768881535245,0.82008625,3190.1,3189.1,1.50370772]
[1768881535445,0.15683,3190.2,3189.1,1.50370772]
[1768881535644,0.82005032,3190.1,3189.1,1.50370772]
[1768881535946,0.15683,3190.2,3189.1,1.50370772]
[1768881536145,0.82249069,3190.1,3189.1,1.50370772]
[1768881536342,0.00245543,3190.1,3189.1,1.50370772]
[1768881538847,0.00245543,3190.1,3189.3,2.4660929]
[1768881539046,0.00245543,3190.1,3189.3,2.46967714]
[1768881539949,0.57184569,3190.6,3189.4,1.50370772]
[1768881540148,0.82034775,3190.5,3189.4,1.50370772]
[1768881540445,0.82034775,3190.4,3189.4,1.50370772]
[1768881540648,0.82034775,3190.3,3189.4,1.50370772]
[1768881540850,0.00224111,3190.3,3189.4,1.50370772]
[1768881541748,0.15683,3190.2,3189.4,1.50370772]
[1768881543951,0.15683,3190.2,3189.6,0.96238518]
[1768881544148,0.00224111,3190.3,3189.6,0.96238518]
[1768881544347,1.12405002,3190.9,3189.6,0.96238518]
[1768881544850,1.12405002,3190.9,3189.4,2.4660929]
[1768881545251,1.1267821,3190.9,3189.4,2.4660929]
[1768881545449,0.96238518,3190.8,3189.4,2.4660929]
[1768881545654,0.15682,3190.4,3189.4,1.50370772]
[1768881547364,0.15682,3190.4,3189.3,0.00358424]
[1768881548451,1.11921518,3190.2,3189.3,0.00358424]
[1768881548647,2.58682475,3190.2,3189.3,0.00358424]
[1768881549951,1.62443957,3190.2,3189.3,0.00358424]
[1768881550153,0.15683,3190.2,3189.3,0.00358424]
[1768881558157,0.15683,3190.1,3189.3,0.00358424]
[1768881573762,1.66710406,3190.1,3189.3,0.00358424]
[1768881576871,1.51027406,3190.0,3189.3,0.00358424]
[1768881577166,1.51027406,3190.0,3188.5,1.51799147]
[1768881577167,1.66711406,3189.9,3188.8,1.991]
[1768881578076,1.66711406,3189.9,3188.8,1.99342096]